bitfinex/quotes_ETHUSD_20250131
["timestamp","ask_amount","ask_price","bid_price","bid_amount"]
[1738357063892,3.23538,3315.3,3314.6,3.01687]
[1738357064090,3.23538,3315.3,3315.0,0.04155374]
[1738357064292,3.04707292,3315.2,3314.5,3.017]
[1738357064614,3.04707292,3315.2,3315.1,0.04145314]
[1738357064814,3.01651,3315.1,3314.7,0.28135213]
[1738357065117,3.9712569,3315.3,3314.7,3.29821213]
[1738357065281,3.9712569,3315.3,3314.8,0.04172757]
[1738357065476,0.3640198,3315.2,3314.8,3.01675]
[1738357065793,0.219,3315.3,3314.9,0.04162696]
[1738357066188,0.219,3315.3,3314.8,3.01675]
[1738357066512,0.219,3315.3,3314.9,0.0416387]
[1738357066723,0.357349,3315.5,3314.9,0.0416387]
[1738357066889,0.7769,3315.7,3314.9,0.0416387]
[1738357067093,0.219,3315.6,3315.1,3.0165]
[1738357067427,0.219,3315.6,3315.2,3.01637]
[1738357067722,0.219,3315.6,3315.2,6.07400166]
[1738357067882,0.219,3315.6,3315.3,3.29789398]
[1738357068079,3.01591,3315.8,3315.3,0.32271678]
[1738357068289,0.219,3315.7,3315.3,0.32271678]
[1738357068619,0.219,3315.7,3315.4,3.0162]
[1738357068818,0.219,3315.7,3315.4,3.29779398]
[1738357068989,0.8176,3316.4,3315.5,0.04091772]
[1738357069195,0.8176,3316.4,3315.9,3.01572]
[1738357069524,3.23442,3316.3,3316.0,0.04031709]
[1738357069675,3.23442,3316.3,3315.7,3.01595]
[1738357069676,0.219,3316.2,3315.9,3.01576]
[1738357069881,0.219,3316.2,3316.1,0.04021655]
[1738357070119,0.219,3316.2,3316.0,3.01564]
[1738357070120,0.8202,3316.7,3316.0,0.04031709]
[1738357070421,3.01525,3316.5,3315.9,3.0157]
[1738357070723,0.63315792,3316.6,3316.0,3.05590709]
[1738357070724,3.617735,3316.6,3316.0,3.05590709]
[1738357071025,3.64837792,3316.6,3316.0,3.05590709]
[1738357071221,3.617735,3316.6,3316.1,3.01557]
[1738357071417,0.219,3316.5,3316.1,3.01557]
[1738357071586,0.219,3316.5,3316.2,3.01549]
[1738357072280,0.219,3316.5,3316.2,3.82609]
[1738357072483,3.01502,3316.8,3316.2,3.82609]
[1738357072707,0.219,3316.7,3316.2,3.82609]
[1738357072930,0.219,3316.7,3316.3,3.01537]
[1738357073138,3.01488,3316.9,3316.4,3.01531]
[1738357073418,3.23398,3316.8,3316.2,0.8106]
[1738357073722,0.219,3316.7,3316.3,3.01534]
[1738357076098,3.55812066,3317.3,3316.3,3.01534]
[1738357076099,0.8029,3317.4,3316.5,3.01515]
[1738357076295,0.8029,3317.4,3316.3,0.68415]
[1738357076296,0.219,3317.3,3316.3,0.68415]
[1738357076493,0.219,3317.3,3316.8,3.01488]
[1738357076898,3.23351,3317.3,3316.8,3.01488]
[1738357077424,3.23351,3317.3,3316.6,3.01507]
[1738357077629,3.938599,3317.3,3316.7,3.01498]
[1738357077780,3.23351,3317.3,3316.7,3.01498]
[1738357077984,3.23351,3317.3,3316.8,3.01491]
[1738357078591,0.219,3317.3,3316.6,3.01507]
[1738357078934,0.219,3317.3,3316.8,3.01487]
[1738357079428,0.219,3317.3,3316.8,3.01488]
[1738357079429,3.23351,3317.3,3316.8,3.01488]
[1738357079591,3.94164829,3317.3,3316.8,3.01488]
[1738357079923,0.92713829,3317.3,3316.8,3.01488]
[1738357080351,0.92713829,3317.3,3315.4,0.8213]
[1738357080352,3.0154,3316.3,3315.4,0.8213]
[1738357080508,0.8152,3316.4,3314.9,0.8213]
[1738357080509,3.01577,3315.9,3314.9,0.8213]
[1738357080709,0.219,3315.8,3315.5,0.05673271]
[1738357081062,3.23486,3315.8,3315.1,6.01644]
[1738357081354,0.219,3315.8,3315.6,0.0659162]
[1738357081511,0.219,3315.8,3315.1,3.0165]
[1738357081709,0.219,3315.8,3315.6,3.0818862]
[1738357081947,0.219,3315.8,3315.6,3.8481862]
[1738357082169,0.219,3315.8,3315.6,0.0659162]
[1738357082662,0.219,3315.8,3315.5,3.01605]
[1738357082813,0.219,3315.8,3315.3,3.01624]
[1738357083018,0.219,3315.8,3315.6,0.0564996]
[1738357083243,0.219,3315.8,3315.3,3.01624]
[1738357083454,0.219,3315.8,3315.6,0.0564996]
[1738357083750,0.219,3315.8,3315.5,3.01613]
[1738357083985,0.219,3315.8,3315.6,0.0564996]
[1738357084511,3.23487,3315.8,3315.4,3.0]
[1738357084721,3.23487,3315.8,3315.1,6.81518]
[1738357084948,3.01598,3315.7,3315.5,0.05664328]
[1738357085152,3.01598,3315.7,3315.1,0.7823]
[1738357085153,3.84732292,3315.7,3315.1,0.7823]
[1738357085461,3.01618,3315.5,3314.8,0.8084]
[1738357085625,0.03064292,3315.4,3314.9,3.01668]
[1738357085814,3.0161,3315.6,3314.9,3.01659]
[1738357086126,0.8007,3315.7,3315.1,3.01643]
[1738357086321,3.01607,3315.6,3315.0,3.01651]
[1738357086527,3.04671292,3315.6,3315.0,3.01651]
[1738357086766,3.01607,3315.6,3315.0,3.01651]
[1738357087055,3.01622,3315.4,3314.8,3.0167]
[1738357087353,0.70518,3315.6,3314.6,3.01691]
[1738357087653,0.70518,3315.6,3313.9,3.01753]
[1738357087654,3.01696,3314.6,3313.9,3.01753]
[1738357087873,3.01721,3314.4,3313.7,3.01773]
[1738357088164,3.01721,3314.4,3313.5,3.01791]
[1738357088165,3.01737,3314.2,3313.5,3.01791]
[1738357088377,3.01737,3314.2,3313.6,3.0]
[1738357088531,3.01737,3314.2,3313.6,6.01786]
[1738357088731,3.01724,3314.3,3313.7,3.01771]
[1738357089840,3.01732,3314.2,3313.6,6.01778]
[1738357090142,3.0172,3314.4,3313.7,3.01774]
[1738357090342,3.01723,3314.3,3313.7,3.01774]
[1738357090525,3.01732,3314.2,3313.6,6.01785]
[1738357090729,3.04809292,3314.1,3313.5,3.0]
[1738357090952,3.01723,3314.3,3313.6,3.0178]
[1738357091170,4.06445,3314.5,3313.7,3.01775]
[1738357091340,4.8165357,3314.5,3313.7,3.01775]
[1738357091664,4.8165357,3314.5,3313.8,3.01761]
[1738357092032,0.219,3314.5,3314.0,0.8186]
[1738357092351,0.219,3314.5,3314.2,3.01731]
[1738357092556,3.84344,3314.9,3314.2,3.01725]
[1738357092756,3.84344,3314.9,3314.4,3.01713]
[1738357092757,0.219,3314.8,3314.4,3.01713]
[1738357094041,0.219,3314.8,3314.6,3.01693]
[1738357094370,0.219,3314.8,3314.3,3.01717]
[1738357094578,0.219,3314.8,3314.5,3.01696]
[1738357095283,0.219,3314.8,3314.3,3.01717]
[1738357095973,0.219,3314.8,3314.5,3.01697]
[1738357096500,0.219,3314.8,3314.2,3.01729]
[1738357096657,3.23582,3314.8,3314.3,3.01722]
[1738357097086,3.01696,3314.6,3314.4,0.04173685]
[1738357097256,3.01687,3314.7,3314.4,0.04173685]
[1738357097461,3.01687,3314.7,3314.2,3.01731]
[1738357097951,3.04751292,3314.7,3314.3,0.04183749]
[1738357098154,3.04751292,3314.7,3314.1,3.0174]
[1738357098155,3.01687,3314.7,3314.1,3.0174]
[1738357098366,0.03064292,3314.6,3314.2,0.04193815]
[1738357098542,0.8155,3314.5,3314.0,3.01748]
[1738357098741,0.8155,3314.5,3314.1,0.03821709]
[1738357098943,0.844245,3314.8,3314.1,0.03821709]
[1738357099286,0.219,3314.8,3314.4,3.01705]
[1738357099662,0.219,3314.8,3314.5,0.0378511]
[1738357099984,0.219,3314.7,3314.5,0.0378511]
[1738357100148,0.24964292,3314.7,3314.5,0.0378511]
[1738357100344,3.01721,3314.4,3313.8,6.0176]
[1738357100598,3.01721,3314.4,3313.9,0.04224014]
[1738357100888,3.23589,3314.7,3314.1,3.01734]
[1738357100889,0.219,3314.7,3314.1,3.01734]
[1738357101085,0.219,3314.7,3314.0,3.0175]
[1738357101293,0.219,3314.7,3314.2,3.05923815]
[1738357101459,0.219,3314.7,3314.1,0.0420388]
[1738357101667,3.01695,3314.6,3314.3,0.04183749]
[1738357101987,3.04759292,3314.6,3314.4,0.04173685]
[1738357102349,3.01695,3314.6,3314.0,3.0175]
[1738357102548,3.01715,3314.4,3314.1,0.03868323]
[1738357102810,3.84721,3314.2,3313.7,3.01776]
[1738357103020,3.04807292,3314.1,3313.5,3.01788]
[1738357103304,3.04807292,3314.1,3312.4,0.5575]
[1738357103305,3.01765,3313.9,3313.2,3.01815]
[1738357103818,5.08610924,3314.2,3313.0,3.01837]
[1738357103819,0.7909,3313.7,3313.0,3.01837]
[1738357104110,0.7909,3313.7,3312.8,3.01851]
[1738357104311,3.01807,3313.4,3312.8,3.01851]
[1738357104605,0.219,3313.3,3312.8,3.01851]
[1738357104811,0.219,3313.3,3312.9,3.01846]
[1738357105169,0.219,3313.3,3312.8,3.01851]
[1738357105415,0.219,3313.3,3312.4,3.01892]
[1738357105416,3.01824,3313.2,3312.4,3.01892]
[1738357105581,2.77500381,3313.1,3312.7,3.01867]
[1738357105775,2.77500381,3313.1,3312.6,3.1835321]
[1738357105776,0.8233,3313.2,3312.8,3.01858]
[1738357105976,3.01833,3313.1,3312.6,3.1835321]
[1738357106214,5.79333381,3313.1,3312.6,3.1835321]
[1738357106387,3.51746795,3313.0,3312.6,0.1647821]
[1738357106709,0.46836503,3313.0,3312.6,3.1835421]
[1738357106908,3.48678503,3313.0,3312.6,0.1647821]
[1738357107216,3.48678503,3313.0,3312.1,0.005]
[1738357107217,3.01886,3312.6,3312.1,1e-05]
[1738357107428,0.7857,3312.8,3310.7,0.7699]
[1738357107429,0.7857,3311.9,3310.7,0.7699]
[1738357107575,3.01976,3311.6,3310.7,0.7699]
[1738357107772,3.56070381,3311.9,3310.9,3.02023]
[1738357107773,3.01968,3311.7,3310.9,3.02023]
[1738357108115,3.01968,3311.7,3310.8,3.02041]
[1738357108284,3.8052,3311.9,3311.0,3.02015]
[1738357108624,3.01968,3311.7,3311.1,3.02013]
[1738357108799,0.219,3311.8,3311.2,3.01999]
[1738357108987,3.23851,3311.8,3311.2,3.02001]
[1738357109333,0.219,3311.8,3311.3,3.01991]
[1738357109537,0.219,3311.8,3311.1,3.02013]
[1738357109830,0.219,3311.8,3310.7,6.79036]
[1738357109831,0.219,3311.8,3311.3,3.0199]
[1738357110132,0.219,3311.8,3311.5,3.01975]
[1738357110427,0.219,3311.9,3311.5,3.01975]
[1738357110720,0.219,3312.3,3311.5,3.0]
[1738357110877,0.219,3312.3,3312.2,3.01914]
[1738357111073,0.219,3312.6,3312.2,3.01914]
[1738357111331,0.219,3312.6,3312.2,3.01912]
[1738357111472,0.219,3312.6,3312.5,3.01886]
[1738357111673,0.219,3312.8,3312.5,3.01886]
[1738357111974,0.219,3312.8,3312.4,3.01895]
[1738357112175,0.219,3312.8,3312.0,0.8259]
[1738357112176,0.219,3312.8,3312.5,3.01879]
[1738357112685,0.219,3312.8,3312.7,3.01868]
[1738357112918,0.782,3313.3,3312.7,3.01868]
[1738357113215,0.219,3313.2,3312.8,3.01857]
[1738357113382,0.219,3313.2,3312.6,3.01875]
[1738357113583,0.219,3313.2,3312.5,3.01884]
[1738357113790,0.219,3313.2,3312.9,3.01844]
[1738357114210,3.82222,3313.7,3313.1,3.01831]
[1738357114409,0.219,3313.3,3313.1,3.01831]
[1738357114613,0.8044,3313.7,3313.2,3.01821]
[1738357114921,0.219,3313.9,3313.6,3.01784]
[1738357115217,0.219,3313.9,3313.7,3.0177]
[1738357115420,0.8122,3314.2,3313.7,3.0177]
[1738357115604,0.219,3314.2,3314.0,3.01749]
[1738357115775,1.49925695,3314.5,3314.0,3.01749]
[1738357116100,0.219,3314.4,3313.8,3.01767]
[1738357116272,0.219,3314.4,3314.0,3.01744]
[1738357116473,0.219,3314.4,3313.8,3.01765]
[1738357116880,0.219,3314.4,3313.8,6.03526]
[1738357117086,0.219,3314.4,3313.9,3.01754]
[1738357117280,0.219,3314.4,3314.0,3.01742]
[1738357117481,0.219,3314.5,3314.1,3.01734]
[1738357118092,0.219,3314.7,3314.3,3.01716]
[1738357118417,3.04763292,3314.6,3313.9,3.01752]
[1738357118576,3.04763292,3314.6,3314.0,3.01749]
[1738357118773,3.01708,3314.5,3313.7,3.01774]
[1738357119021,3.01708,3314.5,3313.9,3.01759]
[1738357119172,3.01708,3314.5,3313.7,3.01774]
[1738357119173,3.01728,3314.3,3313.7,3.01774]
[1738357119377,3.80458,3314.3,3313.7,3.01774]
[1738357119590,3.01773,3313.8,3313.2,3.01814]
[1738357119796,3.01755,3314.0,3312.5,3.320744]
[1738357119797,3.01796,3313.5,3312.7,0.7834]
[1738357119990,3.01796,3313.5,3312.8,3.01851]
[1738357120224,3.01796,3313.5,3312.9,6.01849]
[1738357120908,3.01796,3313.5,3312.9,3.0]
[1738357121106,3.01777,3313.7,3313.0,3.01841]
[1738357121323,3.01787,3313.6,3313.0,3.01841]
[1738357122299,0.8012,3313.5,3312.8,3.01851]
[1738357122499,3.01814,3313.3,3312.6,3.01873]
[1738357122707,3.01848,3313.0,3312.0,3.01932]
[1738357123033,3.01835,3313.1,3312.4,3.01888]
[1738357123234,3.01835,3313.1,3312.5,3.01878]
[1738357123235,0.301835,3313.0,3312.5,3.01878]
[1738357123451,3.0185,3312.9,3312.3,3.01898]
[1738357123744,3.01866,3312.8,3312.1,3.01921]
[1738357123943,0.301835,3313.0,3312.2,3.01913]
[1738357124246,3.01857,3312.9,3312.6,0.0302]
[1738357124442,3.01849,3313.0,3312.6,0.0302]
[1738357124740,3.01851,3312.9,3312.6,0.0302]
[1738357125310,3.0186,3312.8,3312.6,0.0302]
[1738357125541,3.01851,3312.9,3312.6,0.0302]
[1738357125701,3.01862,3312.8,3312.6,0.0302]
[1738357126011,3.622194,3312.9,3312.6,0.0302]
[1738357126751,0.603684,3312.9,3312.6,0.0302]
[1738357126912,0.219,3313.1,3312.7,3.0186]
[1738357127547,0.219,3313.1,3312.8,3.01856]
[1738357127847,0.8012,3313.5,3312.7,0.831]
[1738357128043,0.219,3313.3,3312.8,3.01859]
[1738357128351,0.219,3313.4,3313.0,3.01835]
[1738357128838,0.219,3313.5,3313.2,3.0182]
[1738357129241,0.219,3313.7,3313.3,3.01805]
[1738357130446,0.219,3313.8,3313.6,3.01785]
[1738357130601,3.01733,3314.2,3313.4,3.01803]
[1738357130806,3.01733,3314.2,3312.7,3.831]
[1738357130807,0.219,3314.1,3313.3,3.01806]
[1738357131143,3.82833,3313.5,3312.8,3.01857]
[1738357131343,0.03064292,3313.4,3312.7,3.0]
[1738357131557,3.01816,3313.3,3312.7,6.01864]
[1738357131718,3.01823,3313.2,3312.7,3.0]
[1738357132146,3.01842,3313.0,3312.6,0.0302]
[1738357132443,3.01823,3313.2,3312.6,3.04895]
[1738357132617,3.01809,3313.4,3312.7,3.01863]
[1738357132618,0.0216661,3312.9,3312.7,3.01863]
[1738357133981,0.0216661,3312.9,3312.8,3.01859]
[1738357134778,0.0216661,3312.9,3312.8,3.625345]
[1738357134981,0.0216661,3312.9,3312.8,7.426545]
[1738357135559,0.0216661,3312.9,3312.8,3.0]
[1738357135775,0.0216661,3312.9,3312.8,6.01859]
[1738357136347,0.0216661,3312.9,3312.8,3.0]
[1738357136619,0.0216661,3312.9,3312.6,3.04889]
[1738357137059,0.0216661,3312.9,3312.7,3.0]
[1738357137456,0.0216661,3312.9,3312.7,6.01861]
[1738357137668,0.0216661,3312.9,3312.8,3.01859]
[1738357139686,0.0216661,3312.9,3312.7,3.0]
[1738357140184,0.0216661,3312.9,3312.7,6.01861]
[1738357140404,0.0216661,3312.9,3312.8,3.95552347]
[1738357140705,0.0216661,3312.9,3312.8,4.74321848]
[1738357140882,0.0216661,3312.9,3312.8,4.71304]
[1738357141397,0.0216661,3312.9,3312.8,4.74321803]
[1738357141613,0.0216661,3312.9,3312.8,4.71304]
[1738357141982,0.0216661,3312.9,3312.8,5.27804]
[1738357142186,0.8156,3314.2,3313.7,3.01772]
[1738357142386,0.7848,3314.6,3314.1,3.01741]
[1738357142771,0.7848,3314.6,3314.2,3.01728]
[1738357143073,0.7848,3314.6,3314.3,3.0172]
[1738357143261,0.7496,3314.8,3314.3,3.0172]
[1738357143467,0.9686,3314.8,3314.4,3.01711]
[1738357143701,0.9686,3314.8,3314.6,3.01693]
[1738357144002,0.7496,3314.8,3314.7,3.01686]
[1738357144374,0.7496,3314.8,3314.6,3.0]
[1738357144576,0.7496,3314.8,3314.3,3.0172]
[1738357144780,0.7496,3314.8,3314.4,3.01712]
[1738357145160,0.7496,3314.8,3314.6,3.01688]
[1738357145375,0.7496,3314.8,3314.7,3.01686]
[1738357145807,0.7496,3314.8,3314.7,7.452534]
[1738357146220,1e-05,3314.8,3314.7,11.57091982]
[1738357147073,1e-05,3314.8,3314.7,7.43086783]
[1738357147928,3.01531,3316.5,3315.2,6.0328]
[1738357148139,0.8045,3316.9,3315.2,3.015]
[1738357148284,0.8045,3316.9,3316.6,3.01505]
[1738357148490,3.23358,3317.3,3316.8,3.01495]
[1738357148491,1.0235,3317.3,3316.8,3.01495]
[1738357148704,3.01472,3317.1,3316.5,6.01518]
[1738357149042,0.8045,3317.3,3316.4,3.0]
[1738357149185,0.8045,3317.3,3317.0,3.0]
[1738357149536,3.80957,3317.9,3317.3,3.01447]
[1738357149736,0.7956,3317.9,3317.1,3.01468]
[1738357149941,3.01425,3317.6,3317.0,0.601477]
[1738357150227,3.01425,3317.6,3316.6,0.768]
[1738357150228,3.01428,3317.6,3316.8,3.0]
[1738357150432,0.219,3317.7,3317.1,3.01465]
[1738357150629,3.80964,3317.9,3316.6,3.768]
[1738357150630,0.7956,3317.9,3317.4,3.01437]
[1738357150843,0.7956,3317.9,3316.6,0.768]
[1738357150844,3.57505199,3318.0,3316.6,0.768]
[1738357151035,3.01386,3318.0,3317.0,0.0302]
[1738357151195,0.7939,3318.2,3317.0,0.0302]
[1738357151390,0.005,3318.4,3317.5,3.0]
[1738357151592,0.005,3318.4,3317.3,0.8125]
[1738357151593,0.005,3318.4,3317.9,3.0]
[1738357151902,0.005,3318.4,3318.3,3.01359]
[1738357152104,0.005,3318.4,3318.3,6.04372171]
[1738357152304,0.005,3318.4,3318.3,6.01359]
[1738357152511,0.005,3318.4,3318.3,7.00155593]
[1738357153841,0.005,3318.4,3318.3,6.01359]
[1738357154437,0.005,3318.4,3318.3,3.0]
[1738357154640,3.01185,3320.3,3319.5,3.01245]
[1738357154845,0.7887,3320.4,3319.6,0.03012314]
[1738357155027,0.7887,3320.4,3319.6,3.04252314]
[1738357155206,0.7887,3320.4,3319.4,0.8253]
[1738357155422,0.7887,3320.4,3319.1,3.01277]
[1738357155423,3.01225,3319.8,3319.1,3.01277]
[1738357155619,3.01225,3319.8,3318.9,3.83833]
[1738357155620,3.01242,3319.6,3318.9,0.8253]
[1738357155940,0.7887,3320.4,3319.0,3.0]
[1738357156142,3.80039,3320.4,3319.6,3.01237]
[1738357156286,0.7887,3320.4,3319.1,0.7981]
[1738357156494,0.7887,3320.4,3319.4,3.0]
[1738357156741,3.0113,3320.9,3319.4,3.0]
[1738357156742,0.218,3320.7,3319.4,6.01258]
[1738357157031,0.218,3320.7,3320.2,3.01182]
[1738357157436,0.218,3320.7,3319.6,0.7981]
[1738357157437,3.01172,3320.4,3319.6,0.7981]
[1738357157604,3.01172,3320.4,3319.3,6.58773199]
[1738357157804,0.218,3320.7,3319.5,3.0]
[1738357158020,0.218,3320.7,3319.4,3.0]
[1738357158021,3.01161,3320.5,3319.7,3.01228]
[1738357158220,0.218,3320.7,3319.8,3.01222]
[1738357158538,0.8312,3321.5,3320.2,0.7928]
[1738357158834,3.01046,3321.8,3320.9,3.0112]
[1738357159035,0.8312,3321.8,3321.3,3.01078]
[1738357159262,3.01032,3321.9,3321.1,3.80377]
[1738357159394,3.01032,3321.9,3320.6,3.0]
[1738357159395,0.602054,3321.9,3320.6,3.0]
[1738357159596,3.01108,3321.1,3320.3,3.01177]
[1738357159797,3.01026,3322.0,3320.5,3.01159]
[1738357160044,0.218,3321.9,3321.1,3.01098]
[1738357160200,3.22834,3321.9,3320.8,3.01128]
[1738357160404,3.01054,3321.7,3320.8,3.01128]
[1738357160614,3.22834,3321.9,3320.8,3.01128]
[1738357160615,3.01042,3321.8,3321.0,3.01112]
[1738357160911,0.8104,3322.3,3321.1,3.0]
[1738357161111,0.8104,3322.3,3321.3,3.01086]
[1738357161346,0.1647821,3322.4,3321.6,3.0]
[1738357161529,3.1746521,3322.4,3321.6,6.01057]
[1738357161855,0.1647821,3322.4,3321.7,0.03009852]
[1738357162142,0.1647821,3322.4,3322.0,3.79469]
[1738357162346,0.1647821,3322.4,3321.7,3.0]
[1738357162519,0.1647821,3322.4,3321.7,6.01042]
[1738357162847,0.1647821,3322.4,3322.0,3.0102]
[1738357163142,0.1647821,3322.4,3322.0,3.31122]
[1738357163703,0.1647821,3322.4,3322.0,0.30102]
[1738357163902,0.1647821,3322.4,3321.9,3.01031]
[1738357164104,0.1647821,3322.4,3322.3,6.00996]
[1738357164344,0.1647821,3322.4,3322.3,6.84905237]
[1738357164504,0.1647821,3322.4,3322.3,6.81896]
[1738357165155,0.1647821,3322.4,3322.3,3.0]
[1738357165448,0.1647821,3322.4,3322.3,6.30996]
[1738357167345,0.1647821,3322.4,3322.3,6.34005323]
[1738357167546,3.00918,3323.2,3322.4,3.0098]
[1738357167904,3.00935,3323.0,3322.3,6.30989]
[1738357168111,3.57505199,3323.2,3321.9,3.8274]
[1738357168349,0.796,3323.3,3322.0,0.59509475]
[1738357168519,0.796,3323.3,3322.3,3.00996]
[1738357168720,3.00941,3323.0,3322.0,3.01023]
[1738357169011,3.00941,3323.0,3322.3,3.0]
[1738357169351,3.00957,3322.8,3321.9,3.82742]
[1738357169519,3.00932,3323.0,3322.1,6.01005]
[1738357169723,0.796,3323.3,3322.2,0.03009628]
[1738357169922,0.796,3323.3,3322.8,3.00949]
[1738357170125,0.796,3323.3,3322.6,3.0]
[1738357170320,0.796,3323.3,3322.6,0.63105947]
[1738357170548,0.796,3323.3,3322.4,0.60555487]
[1738357170919,0.796,3323.3,3322.4,3.00987]
[1738357171119,0.796,3323.3,3322.6,3.00961]
[1738357171323,0.005,3323.4,3322.4,3.00987]
[1738357171324,0.005,3323.4,3322.8,3.00951]
[1738357171654,0.005,3323.4,3323.3,3.00905]
[1738357172063,0.005,3323.4,3322.8,3.0]
[1738357172278,0.005,3323.4,3323.1,3.00923]
[1738357172763,0.005,3323.4,3323.2,3.00914]
[1738357172978,0.005,3323.4,3323.0,3.00931]
[1738357173184,0.005,3323.4,3322.9,3.00941]
[1738357173327,0.005,3323.4,3323.3,3.00905]
[1738357173663,0.005,3323.4,3323.3,3.610878]
[1738357174020,0.005,3323.4,3323.3,6.610878]
[1738357174422,0.005,3323.4,3323.3,3.601828]
[1738357174622,0.005,3323.4,3323.2,3.00912]
[1738357174823,0.005,3323.4,3323.3,3.00905]
[1738357176785,0.005,3323.4,3323.3,3.01655]
[1738357177068,0.005,3323.4,3323.3,3.57405]
[1738357177275,0.005,3323.4,3323.3,4.37475]
[1738357177426,0.005,3323.4,3323.3,8.714057]
[1738357180482,0.005,3323.4,3323.3,3.80975]
[1738357180847,0.005,3323.4,3323.3,3.85483287]
[1738357181160,0.005,3323.4,3323.3,3.82475]
[1738357182837,0.005,3323.4,3323.3,4.37475]
[1738357183453,0.005,3323.4,3323.3,4.40482926]
[1738357183654,0.005,3323.4,3323.3,8.74714319]
[1738357183854,0.005,3323.4,3323.3,8.71706393]
[1738357184494,0.005,3323.4,3323.3,8.16706393]
[1738357185050,0.005,3323.4,3323.3,4.35136393]
[1738357185310,0.005,3323.4,3323.2,3.0]
[1738357185604,3.01404,3323.4,3322.8,0.66179568]
[1738357185788,0.005,3323.4,3322.7,3.00951]
[1738357185956,0.005,3323.4,3322.9,3.00941]
[1738357186157,0.005,3323.4,3322.9,3.0]
[1738357186357,0.005,3323.4,3322.2,0.7781]
[1738357186358,3.0095,3322.9,3322.2,0.7781]
[1738357186671,3.0095,3322.9,3322.1,3.02511]
[1738357186672,3.00975,3322.6,3322.3,0.380321]
[1738357186986,3.00975,3322.6,3321.8,3.01036]
[1738357187155,3.00975,3322.6,3321.9,3.0]
[1738357187352,3.00931,3323.1,3321.8,3.01034]
[1738357187353,3.57505199,3322.9,3321.8,3.01034]
[1738357187558,3.00989,3322.4,3321.8,3.01034]
[1738357187881,3.00969,3322.6,3321.9,3.01029]
[1738357188249,0.218,3322.7,3322.0,3.01021]
[1738357188453,0.218,3322.7,3321.9,3.01029]
[1738357188703,0.8131,3322.5,3321.8,0.679183]
[1738357188996,0.8131,3322.5,3321.6,3.01058]
[1738357188997,3.82294,3322.5,3321.9,3.01031]
[1738357189154,0.8131,3322.5,3322.0,3.01017]
[1738357189381,0.8131,3322.5,3321.9,3.01031]
[1738357189880,0.218,3322.8,3322.0,3.01014]
[1738357189881,3.22753,3322.8,3322.0,3.01014]
[1738357190086,3.00977,3322.6,3321.9,3.0103]
[1738357190286,3.0096,3322.7,3321.5,3.0]
[1738357190504,3.01017,3322.1,3321.5,3.0]
[1738357190726,0.81,3322.6,3321.5,6.01062]
[1738357190930,3.00998,3322.3,3321.6,3.01053]
[1738357191131,3.01011,3322.2,3321.4,3.01073]
[1738357191342,0.81,3321.7,3320.5,3.01152]
[1738357191490,3.01105,3321.1,3320.5,3.01159]
[1738357191890,3.01087,3321.3,3320.6,3.01146]
[1738357192233,3.01087,3321.3,3320.7,3.0]
[1738357192584,0.218,3321.5,3320.8,0.03010851]
[1738357192842,0.218,3321.5,3321.0,3.01108]
[1738357193148,3.82051,3321.7,3321.0,3.01108]
[1738357193149,3.0106,3321.6,3321.0,0.60523485]
[1738357193358,3.01078,3321.4,3320.8,0.03010566]
[1738357193519,0.81,3321.7,3320.3,3.01175]
[1738357193520,3.01114,3321.0,3320.3,3.01175]
[1738357193719,3.01107,3321.1,3320.4,3.01165]
[1738357193938,4.38505199,3321.7,3320.4,3.0]
[1738357194110,3.01115,3321.0,3320.4,6.01168]
[1738357194313,3.81029,3321.2,3320.4,3.902353]
[1738357194542,3.81029,3321.2,3320.6,3.0115]
[1738357194848,3.01105,3321.1,3320.4,3.0]
[1738357195054,3.01105,3321.1,3320.5,3.01158]
[1738357195236,3.01105,3321.1,3319.9,0.7619]
[1738357195237,0.7993,3321.2,3319.9,0.7619]
[1738357195419,0.7993,3321.2,3320.6,3.01146]
[1738357195608,0.7993,3321.2,3320.7,0.301146]
[1738357195811,0.7993,3321.2,3319.1,6.58786199]
[1738357196154,0.7861,3320.4,3319.0,0.7959]
[1738357196357,0.7861,3320.4,3318.3,3.57505199]
[1738357196358,3.79857,3319.6,3318.3,0.7959]
[1738357196506,0.7861,3319.6,3319.0,3.01288]
[1738357196707,0.7861,3319.6,3318.7,3.0]
[1738357197073,3.57505199,3319.4,3318.1,0.61090873]
[1738357197205,3.01318,3318.8,3317.5,0.7974]
[1738357197412,3.99229,3318.7,3317.9,3.01388]
[1738357197707,3.99229,3318.7,3317.5,0.7974]
[1738357197708,3.01352,3318.4,3317.5,0.7974]
[1738357198015,3.99226,3318.7,3317.5,0.7974]
[1738357198016,3.01344,3318.5,3317.7,3.01406]
[1738357198216,3.99223,3318.7,3317.8,0.301406]
[1738357198416,3.01343,3318.5,3317.8,0.301406]
[1738357198659,3.01343,3318.5,3317.8,3.315426]
[1738357198958,3.99223,3318.7,3317.8,3.315426]
[1738357199257,3.99223,3318.7,3317.1,3.01461]
[1738357199258,3.04395292,3318.6,3317.2,3.01458]
[1738357199445,3.01412,3317.8,3316.6,0.7623]
[1738357199624,0.8075,3318.5,3316.7,0.59542808]
[1738357199625,0.8075,3318.2,3316.7,0.59542808]
[1738357199954,0.8075,3318.2,3316.8,3.01493]